[Event "XIX Najdorf Memorial 2019"]
[Site "Warsaw"]
[Date "2019.07.07"]
[Round "2.1"]
[White "Szustakowski, Antoni"]
[Black "Kanarek, Marcel"]
[Result "0-1"]
[ECO "E73"]
[WhiteElo "2279"]
[BlackElo "2493"]
[Annotator "ChessBase"]
[PlyCount "66"]
[EventDate "2019.07.06"]
[EventType "swiss"]
[EventCountry "POL"]
[SourceTitle "playchess.com"]
[Source "ChessBase"]
[SourceQuality "1"]
[TimeControl "40/5400+30:1800+30"]

1. d4 {[%emt 0:00:00]} Nf6 {[%emt 0:00:00]} 2. c4 {[%emt 0:00:00]} g6 {[%emt 0:00:00]} 3. Nc3 {[%emt 0:00:00]} Bg7 {[%emt 0:00:00]} 4. e4 {[%emt 0:00:00]} d6 {[%emt 0:00:00]} 5. Be2 {[%emt 0:00:00]} O-O {[%emt 0:00:05]} 6. Bg5 {[%emt 0:00:00]} Na6 {[%emt 0:00:04]} 7. Qd2 {[%emt 0:00:10]} e5 {[%emt 0:00:31]} 8. d5 {[%emt 0:00:05]} Qe8 9. Bd1 c6 {[%emt 0:02:37]} 10. Nge2 {[%emt 0:03:53]} cxd5 {[%emt 0:07:08]} 11. cxd5 {[%emt 0:09:57]} b5 {[%emt 0:00:32]} 12. a3 Nc5 13. f3 a5 14. a4 b4 15. Nb5 Qd7 16. Nc1 Ba6 17. Be3 Bxb5 18. axb5 Qxb5 19. Be2 Qb6 20. O-O Nfd7 21. Bc4 Bh6 22. Bxh6 Nb3+ 23. Qf2 Qxf2+ 24. Rxf2 Nxa1 25. Bxf8 Kxf8 26. b3 Rc8 27. Nd3 Rxc4 28. bxc4 b3 29. Kf1 a4 30. Ke2 a3 31. Nb4 Nc2 32. Nxc2 a2 33. Rf1 b2 0-1

[Event "XIX Najdorf Memorial 2019"]
[Site "Warsaw"]
[Date "2019.07.07"]
[Round "2.2"]
[White "Efimenko, Zahar"]
[Black "Goluch, Piotr"]
[Result "0-1"]
[ECO "B13"]
[WhiteElo "2631"]
[BlackElo "2386"]
[Annotator "RC"]
[PlyCount "80"]
[EventDate "2019.07.06"]
[EventType "swiss"]
[EventCountry "POL"]
[SourceTitle "playchess.com"]
[Source "ChessBase"]
[SourceQuality "1"]
[TimeControl "40/5400+30:1800+30"]

1. e4 {[%emt 0:02:37]} c6 {[%emt 0:00:00]} 2. d4 {[%emt 0:00:09]} d5 {[%emt 0:00:00]} 3. exd5 {[%emt 0:00:13]} cxd5 {[%emt 0:00:00]} 4. Nf3 {[%emt 0:00:09]} Nf6 {[%emt 0:00:24]} 5. Ne5 {[%emt 0:00:47]} g6 {[%emt 0:03:51]} 6. Bb5+ {[%emt 0:01:09]} Nbd7 {[%emt 0:04:47]} 7. O-O {[%emt 0:00:39]} Bg7 {[%emt 0:00:09]} 8. c3 {[%emt 0:00:37]} O-O {[%emt 0:00:18]} 9. Nf3 {[%emt 0:00:17]} Ne4 {[%emt 0:00:22]} 10. h3 {[%emt 0:02:03]} Ndf6 {[%emt 0:12:58]} 11. Re1 {[%emt 0:02:35]} Bd7 {[%emt 0:01:22]} 12. Bf1 {[%emt 0:03:21]} b5 {[%emt 0:02:52]} 13. Ne5 {[%emt 0:04:12]} Be8 {[%emt 0:00:03]} 14. Na3 {[%emt 0:02:32]} Qb6 {[%emt 0:05:08]} 15. Qb3 {[%emt 0:09:02]} Rb8 {[%emt 0:06:08]} 16. Bf4 {[%emt 0:06:05]} Rb7 {[%emt 0:09:18]} 17. Nc2 {[%emt 0:02:58]} e6 {[%emt 0:09:31]} 18. Rad1 {[%emt 0:14:22]} Nd6 {[%emt 0:16:13]} 19. Nd3 {[%emt 0:06:53]} Nd7 {[%emt 0:00:24]} 20. Ne3 {[%emt 0:01:55]} a5 {[%emt 0:03:43]} 21. a3 {[%emt 0:06:04]} Nc4 {[%emt 0:03:11]} 22. Ng4 {[%emt 0:01:04]} f6 {[%emt 0:03:51]} 23. Bh6 {[%emt 0:10:03]} Bxh6 {[%emt 0:01:10]} 24. Nxh6+ {[%emt 0:00:03]} Kg7 {[%emt 0:00:03]} 25. Ng4 {[%emt 0:00:06]} g5 {[%emt 0:00:13]} 26. Qc2 {[%emt 0:01:21]} Bg6 {[%emt 0:01:02]} 27. Qc1 {[%emt 0:00:06]} a4 {[%emt 0:01:04]} 28. f4 {[%emt 0:01:58]} h6 {[%emt 0:06:12]} 29. fxg5 {[%emt 0:00:09]} hxg5 {[%emt 0:00:43]} 30. h4 {[%emt 0:00:28]} Bh5 {[%emt 0:04:45]} 31. Be2 Qd6 32. Nxf6 {[%emt 0:06:15]} Nxf6 {[%emt 0:02:39]} 33. Qxg5+ {[%emt 0:04:44]} Kh7 34. Bxh5 {[%emt 0:00:24]} Rg7 {[%emt 0:00:07]} 35. Qf4 {[%emt 0:00:30]} Nxh5 {[%emt 0:00:26]} 36. Qxd6 {[%emt 0:00:08]} Nxd6 {[%emt 0:00:03]} 37. Rxe6 {[%emt 0:00:06]} Ne4 {[%emt 0:01:25]} 38. Re5 {[%emt 0:04:37]} Nhg3 {[%emt 0:00:30]} 39. Re1 {[%emt 0:02:43]} Rg4 {[%emt 0:00:23]} 40. Re7+ {[%emt 0:00:00]} Kg8 {[%emt 0:00:00]} 0-1

[Event "XIX Najdorf Memorial 2019"]
[Site "Warsaw"]
[Date "2019.07.07"]
[Round "2.2"]
[White "Popovic, Dusan"]
[Black "Piotrowski, Przemyslaw"]
[Result "1-0"]
[ECO "A48"]
[WhiteElo "2487"]
[BlackElo "2273"]
[Annotator "ChessBase"]
[PlyCount "79"]
[EventDate "2019.07.06"]
[EventType "swiss"]
[EventCountry "POL"]
[SourceTitle "playchess.com"]
[Source "ChessBase"]
[SourceQuality "1"]
[TimeControl "40/5400+30:1800+30"]

1. d4 Nf6 2. Nf3 g6 3. Nbd2 d5 4. b4 a5 5. b5 c6 6. e3 Bg7 7. c4 cxb5 8. cxb5 Nbd7 9. Be2 O-O 10. Bb2 a4 11. Rc1 Nb6 12. Ne5 Ne8 13. h4 Nd6 14. h5 Bd7 15. hxg6 fxg6 16. Bd3 Bf5 17. Qe2 Bxd3 18. Qxd3 Qe8 19. e4 Bxe5 20. dxe5 Nxe4 21. Nxe4 dxe4 22. Qh3 Qf7 23. Bd4 e3 24. f3 h5 25. Bxb6 Qxa2 26. O-O e2 27. Rfe1 Rf5 28. Qg3 Kh7 29. Rc7 Qe6 30. Bc5 Rf7 31. Ba3 Qb3 32. e6 Qxe6 33. Qf2 Qb3 34. Rxe7 Rxe7 35. Bxe7 Re8 36. Bf6 Qxb5 37. Ba1 Qb4 38. f4 a3 39. f5 a2 40. fxg6+ 1-0

[Event "XIX Najdorf Memorial 2019"]
[Site "Warsaw"]
[Date "2019.07.07"]
[Round "2.3"]
[White "Jacobsen, Mikkel Manosri"]
[Black "Tomczak, Jacek"]
[Result "0-1"]
[ECO "E11"]
[WhiteElo "2343"]
[BlackElo "2623"]
[Annotator "RC"]
[PlyCount "70"]
[EventDate "2019.07.06"]
[EventType "swiss"]
[EventCountry "POL"]
[SourceTitle "playchess.com"]
[Source "ChessBase"]
[SourceQuality "1"]
[TimeControl "40/5400+30:1800+30"]

1. d4 {[%emt 0:00:00]} Nf6 {[%emt 0:00:00]} 2. c4 {[%emt 0:00:00]} e6 {[%emt 0:00:16]} 3. Nf3 {[%emt 0:00:00]} Bb4+ {[%emt 0:00:21]} 4. Nbd2 {[%emt 0:00:00]} O-O {[%emt 0:00:27]} 5. a3 {[%emt 0:00:00]} Be7 {[%emt 0:00:11]} 6. e4 {[%emt 0:00:01]} d6 {[%emt 0:00:20]} 7. Be2 {[%emt 0:00:05]} Nbd7 {[%emt 0:01:27]} 8. O-O {[%emt 0:00:09]} e5 {[%emt 0:01:16]} 9. b4 {[%emt 0:04:02]} exd4 {[%emt 0:04:14]} 10. Nxd4 {[%emt 0:00:20]} a5 {[%emt 0:00:07]} 11. Bb2 {[%emt 0:02:48]} c5 {[%emt 0:03:37]} 12. Nf5 {[%emt 0:04:16]} axb4 {[%emt 0:07:37]} 13. axb4 {[%emt 0:00:06]} Rxa1 {[%emt 0:00:11]} 14. Qxa1 {[%emt 0:00:20]} cxb4 {[%emt 0:01:27]} 15. g4 {[%emt 0:08:48]} Nc5 {[%emt 0:12:45]} 16. Kh1 {[%emt 0:40:29]} Bxf5 {[%emt 0:10:56]} 17. exf5 {[%emt 0:00:06]} Re8 {[%emt 0:04:52]} 18. Bf3 {[%emt 0:08:33]} Nfd7 {[%emt 0:08:01]} 19. Ne4 {[%emt 0:09:56]} Nxe4 {[%emt 0:02:59]} 20. Bxe4 {[%emt 0:00:03]} Nc5 {[%emt 0:00:20]} 21. Bd5 {[%emt 0:01:37]} Bf6 {[%emt 0:00:19]} 22. f4 {[%emt 0:02:37]} Bxb2 {[%emt 0:12:31]} 23. Qxb2 {[%emt 0:00:02]} Qh4 {[%emt 0:00:22]} 24. Qd2 {[%emt 0:04:57]} Qh3 {[%emt 0:08:18]} 25. Rg1 {[%emt 0:10:26]} b3 {[%emt 0:05:24]} 26. f6 {[%emt 0:02:00]} Qe3 {[%emt 0:02:30]} 27. Qxe3 {[%emt 0:01:07]} Rxe3 {[%emt 0:00:05]} 28. g5 {[%emt 0:00:05]} b2 {[%emt 0:01:48]} 29. g6 {[%emt 0:00:47]} hxg6 {[%emt 0:00:20]} 30. f5 {[%emt 0:00:05]} g5 {[%emt 0:00:42]} 31. Rb1 {[%emt 0:00:48]} Nd3 {[%emt 0:00:48]} 32. Kg1 {[%emt 0:00:24]} Re1+ {[%emt 0:00:42]} 33. Rxe1 {[%emt 0:00:06]} Nxe1 {[%emt 0:00:05]} 34. Be4 {[%emt 0:00:21]} Nf3+ {[%emt 0:00:07]} 35. Kf2 {[%emt 0:00:30]} Nd2 {[%emt 0:00:08]} 0-1

[Event "XIX Najdorf Memorial 2019"]
[Site "Warsaw"]
[Date "2019.07.07"]
[Round "2.3"]
[White "Pacan-Milej, Kosma"]
[Black "Harsha Bharathakoti"]
[Result "0-1"]
[ECO "A50"]
[WhiteElo "2272"]
[BlackElo "2486"]
[Annotator "ChessBase"]
[PlyCount "178"]
[EventDate "2019.07.06"]
[EventType "swiss"]
[EventCountry "POL"]
[SourceTitle "playchess.com"]
[Source "ChessBase"]
[SourceQuality "1"]
[TimeControl "40/5400+30:1800+30"]

1. d4 {[%emt 0:00:00]} Nf6 {[%emt 0:00:07]} 2. c4 {[%emt 0:00:00]} g6 {[%emt 0:00:39]} 3. f3 {[%emt 0:00:00]} Bg7 {[%emt 0:00:05]} 4. e4 {[%emt 0:00:00]} d6 {[%emt 0:00:10]} 5. Ne2 {[%emt 0:00:10]} O-O {[%emt 0:00:13]} 6. Be3 {[%emt 0:00:07]} c5 {[%emt 0:00:28]} 7. Qd2 {[%emt 0:00:07]} Nc6 {[%emt 0:00:12]} 8. d5 {[%emt 0:00:07]} Ne5 {[%emt 0:00:05]} 9. Nec3 {[%emt 0:00:05]} Nh5 {[%emt 0:00:47]} 10. Be2 {[%emt 0:03:51]} f5 {[%emt 0:02:05]} 11. exf5 {[%emt 0:12:45]} gxf5 {[%emt 0:00:22]} 12. Na3 {[%emt 0:22:17]} f4 {[%emt 0:11:15]} 13. Bf2 {[%emt 0:00:07]} Qe8 {[%emt 0:02:35]} 14. O-O-O {[%emt 0:06:29]} Qg6 {[%emt 0:05:06]} 15. Rhg1 {[%emt 0:03:30]} a6 {[%emt 0:07:35]} 16. Na4 {[%emt 0:08:26]} b5 17. Nb6 Rb8 18. Nxc8 Rfxc8 19. cxb5 axb5 20. Nxb5 Rb7 21. Qc2 Qf7 22. Be1 Rcb8 23. a4 Nf6 24. Qf5 Ra8 25. Bc3 Nfd7 26. Qxf7+ Kxf7 27. a5 c4 28. Na3 Nd3+ 29. Bxd3 cxd3 30. Bxg7 Kxg7 31. Rxd3 Rxa5 32. Rgd1 Nc5 33. Rc3 Na4 34. Rc2 Nb6 35. Rcd2 Rc5+ 36. Kb1 Na4 37. Ka1 Ra5 38. Re1 Nc3 39. bxc3 Rxa3+ 40. Ra2 Rxc3 41. Rb2 Ra7+ 42. Kb1 Rc4 43. Rbe2 Rb7+ 44. Rb2 Ra7 45. Rbe2 Rb7+ 46. Rb2 Rbc7 47. Rbe2 Rb4+ 48. Rb2 Rd4 49. Rbe2 Rb4+ 50. Rb2 Ra4 51. Rbe2 Kf7 52. Re4 Rb7+ 53. Kc2 Ra2+ 54. Kc3 Rxg2 55. Rxf4+ Ke8 56. Rh4 Rg7 57. Rh6 Kf8 58. Re4 Rf7 59. f4 Rb5 60. Kc4 Ra5 61. Rhe6 Ra2 62. h3 Ra4+ 63. Kb5 Ra3 64. h4 Rc3 65. Kb6 Rc5 66. Ra4 Rxd5 67. Ra8+ Kg7 68. Ra7 Rh5 69. Rexe7 Rxe7 70. Rxe7+ Kf6 71. Re8 Rxh4 72. Kc6 Rxf4 73. Rf8+ Ke5 74. Re8+ Kd4 75. Kxd6 h5 76. Ra8 h4 77. Ra3 Rf6+ 78. Ke7 Rh6 79. Ra4+ Ke5 80. Ra5+ Kf4 81. Ra4+ Kg5 82. Ra5+ Kg6 83. Ra6+ Kh7 84. Ra1 h3 85. Kf7 h2 86. Rh1 Rh5 87. Kf6 Kh6 88. Ke6 Kg5 89. Ke5 Kg4+ 0-1

[Event "XIX Najdorf Memorial 2019"]
[Site "Warsaw"]
[Date "2019.07.07"]
[Round "2.4"]
[White "Dragun, Kamil"]
[Black "Malek, Daniel"]
[Result "1-0"]
[ECO "A18"]
[WhiteElo "2604"]
[BlackElo "2362"]
[Annotator "RC"]
[PlyCount "98"]
[EventDate "2019.07.06"]
[EventType "swiss"]
[EventCountry "POL"]
[SourceTitle "playchess.com"]
[Source "ChessBase"]
[SourceQuality "1"]
[TimeControl "40/5400+30:1800+30"]

1. c4 Nf6 2. Nc3 e6 3. e4 d5 4. cxd5 exd5 5. e5 Ne4 6. Nf3 Bf5 7. d3 Nxc3 8. bxc3 c5 9. d4 Nc6 10. Bd3 Bxd3 11. Qxd3 cxd4 12. cxd4 Bb4+ 13. Bd2 Bxd2+ 14. Qxd2 O-O 15. O-O Rc8 16. Rfe1 Re8 17. Rab1 Qd7 18. Qd3 h6 19. Nh4 Ne7 20. h3 Rc6 21. f4 g6 22. Rf1 Rec8 23. f5 Rc3 24. Qb5 Qxb5 25. Rxb5 g5 26. f6 gxh4 27. fxe7 R3c7 28. Rxd5 Rxe7 29. Rf4 Rc6 30. a4 Rg6 31. Rxh4 Kg7 32. Rf4 f6 {[%emt 1:31:50]} 33. Rxf6 {[%emt 1:14:40]} Rxf6 {[%emt 0:00:07]} 34. exf6+ {[%emt 0:00:10]} Kxf6 {[%emt 0:00:32]} 35. Kf2 Rc7 {[%emt 0:01:05]} 36. Rh5 {[%emt 0:02:34]} Rc2+ {[%emt 0:00:05]} 37. Kf3 {[%emt 0:04:03]} Kg6 {[%emt 0:01:52]} 38. Rd5 {[%emt 0:00:38]} Kf6 {[%emt 0:04:36]} 39. h4 {[%emt 0:00:00]} Rd2 {[%emt 0:00:00]} 40. Rd6+ {[%emt 0:00:00]} Ke7 {[%emt 0:00:00]} 41. Rxh6 {[%emt 0:03:14]} Rxd4 {[%emt 0:02:49]} 42. a5 {[%emt 0:00:21]} Ra4 {[%emt 0:00:51]} 43. Rh5 {[%emt 0:00:09]} Kf6 {[%emt 0:01:11]} 44. g3 {[%emt 0:00:47]} Rb4 {[%emt 0:06:35]} 45. a6 {[%emt 0:02:14]} bxa6 {[%emt 0:03:09]} 46. Rh6+ {[%emt 0:00:30]} Ke5 {[%emt 0:00:04]} 47. Rxa6 {[%emt 0:00:28]} Rb7 {[%emt 0:00:04]} 48. h5 {[%emt 0:01:13]} Rc7 {[%emt 0:00:30]} 49. Kg4 {[%emt 0:00:30]} Kd5 1-0

[Event "XIX Najdorf Memorial 2019"]
[Site "Warsaw"]
[Date "2019.07.07"]
[Round "2.4"]
[White "Gagare, Shardul"]
[Black "Chomczyk, Marek"]
[Result "1-0"]
[ECO "D38"]
[WhiteElo "2476"]
[BlackElo "2270"]
[Annotator "ChessBase"]
[PlyCount "119"]
[EventDate "2019.07.06"]
[EventType "swiss"]
[EventCountry "POL"]
[SourceTitle "playchess.com"]
[Source "ChessBase"]
[SourceQuality "1"]
[TimeControl "40/5400+30:1800+30"]

1. Nf3 {[%emt 0:05:14]} Nf6 {[%emt 0:00:00]} 2. c4 {[%emt 0:01:05]} e6 {[%emt 0:00:00]} 3. d4 {[%emt 0:00:24]} d5 {[%emt 0:00:02]} 4. Nc3 {[%emt 0:00:22]} Bb4 {[%emt 0:00:28]} 5. Bg5 {[%emt 0:01:06]} h6 {[%emt 0:00:14]} 6. Bxf6 {[%emt 0:00:09]} Qxf6 {[%emt 0:00:06]} 7. Qa4+ {[%emt 0:00:09]} Nc6 {[%emt 0:00:06]} 8. e3 {[%emt 0:00:04]} O-O {[%emt 0:01:44]} 9. Be2 {[%emt 0:00:21]} Rd8 {[%emt 0:01:56]} 10. O-O {[%emt 0:00:30]} Bf8 {[%emt 0:01:10]} 11. Rac1 {[%emt 0:03:23]} a6 {[%emt 0:16:24]} 12. Rfd1 {[%emt 0:02:54]} Qg6 {[%emt 0:11:12]} 13. a3 {[%emt 0:11:44]} dxc4 {[%emt 0:06:35]} 14. Qxc4 {[%emt 0:00:20]} Bd6 {[%emt 0:00:21]} 15. Bd3 {[%emt 0:06:07]} Qh5 {[%emt 0:01:41]} 16. Ne4 {[%emt 0:00:40]} Bd7 {[%emt 0:06:28]} 17. Nc5 {[%emt 0:14:39]} Bxc5 {[%emt 0:07:56]} 18. Qxc5 {[%emt 0:01:29]} Qxc5 {[%emt 0:00:15]} 19. Rxc5 {[%emt 0:00:16]} Rac8 {[%emt 0:00:24]} 20. Rdc1 {[%emt 0:01:11]} Be8 {[%emt 0:00:29]} 21. Be4 {[%emt 0:00:32]} f6 {[%emt 0:03:16]} 22. d5 {[%emt 0:08:18]} exd5 {[%emt 0:03:20]} 23. Bxd5+ {[%emt 0:00:09]} Kf8 {[%emt 0:00:14]} 24. Bxc6 {[%emt 0:00:31]} Bxc6 {[%emt 0:01:00]} 25. Nd4 {[%emt 0:00:08]} Rd6 {[%emt 0:07:29]} 26. Nxc6 {[%emt 0:01:19]} Rxc6 {[%emt 0:00:07]} 27. Rxc6 {[%emt 0:00:06]} bxc6 {[%emt 0:00:04]} 28. Rxc6 {[%emt 0:00:09]} Rb8 {[%emt 0:00:05]} 29. Rc2 {[%emt 0:01:23]} Rb7 {[%emt 0:01:18]} 30. Kf1 {[%emt 0:03:34]} a5 {[%emt 0:00:04]} 31. Ke2 {[%emt 0:00:07]} Ke7 {[%emt 0:00:05]} 32. Kd2 {[%emt 0:03:50]} Kd6 {[%emt 0:00:22]} 33. Kc3 {[%emt 0:00:15]} Rb5 {[%emt 0:01:00]} 34. Rd2+ {[%emt 0:00:31]} Kc6 {[%emt 0:00:49]} 35. Rd4 {[%emt 0:01:05]} Rf5 {[%emt 0:00:53]} 36. f4 {[%emt 0:04:51]} h5 {[%emt 0:01:04]} 37. g3 {[%emt 0:02:19]} Rb5 {[%emt 0:01:48]} 38. e4 {[%emt 0:05:19]} h4 {[%emt 0:03:41]} 39. a4 {[%emt 0:19:14]} Rb8 {[%emt 0:01:07]} 40. Rc4+ {[%emt 0:00:00]} Kd6 {[%emt 0:00:00]} 41. e5+ {[%emt 0:07:14]} fxe5 {[%emt 0:08:01]} 42. fxe5+ {[%emt 0:00:07]} Kxe5 {[%emt 0:00:04]} 43. Rxc7 {[%emt 0:01:25]} hxg3 {[%emt 0:00:24]} 44. hxg3 {[%emt 0:00:06]} Rb4 {[%emt 0:00:17]} 45. Rc4 {[%emt 0:00:36]} Rb6 {[%emt 0:00:39]} 46. Rc5+ {[%emt 0:00:07]} Ke4 {[%emt 0:00:03]} 47. g4 {[%emt 0:05:24]} Ra6 {[%emt 0:00:39]} 48. b4 {[%emt 0:00:53]} axb4+ {[%emt 0:00:06]} 49. Kxb4 {[%emt 0:00:04]} Ra8 {[%emt 0:00:58]} 50. a5 {[%emt 0:00:30]} Rb8+ {[%emt 0:00:10]} 51. Rb5 {[%emt 0:01:07]} Ra8 {[%emt 0:00:06]} 52. g5 {[%emt 0:00:51]} Kf4 {[%emt 0:00:06]} 53. g6 {[%emt 0:00:08]} Ra6 {[%emt 0:00:44]} 54. Rb6 {[%emt 0:00:07]} Ra7 {[%emt 0:00:04]} 55. a6 {[%emt 0:00:04]} Kf5 {[%emt 0:00:05]} 56. Kb5 {[%emt 0:00:04]} Ra8 {[%emt 0:00:04]} 57. Rc6 {[%emt 0:00:24]} Rb8+ {[%emt 0:00:05]} 58. Kc5 {[%emt 0:00:11]} Rb1 {[%emt 0:00:05]} 59. a7 {[%emt 0:00:04]} Ra1 {[%emt 0:00:07]} 60. Kb6 {[%emt 0:00:04]} 1-0

[Event "XIX Najdorf Memorial 2019"]
[Site "Warsaw"]
[Date "2019.07.07"]
[Round "2.5"]
[White "Czerw, Dawid"]
[Black "Bernadskiy, Vitaliy"]
[Result "1/2-1/2"]
[ECO "E46"]
[WhiteElo "2326"]
[BlackElo "2594"]
[Annotator "ChessBase"]
[PlyCount "56"]
[EventDate "2019.07.06"]
[EventType "swiss"]
[EventCountry "POL"]
[SourceTitle "playchess.com"]
[Source "ChessBase"]
[SourceQuality "1"]
[TimeControl "40/5400+30:1800+30"]

1. d4 {[%emt 0:01:03]} Nf6 {[%emt 0:00:00]} 2. c4 {[%emt 0:00:05]} e6 {[%emt 0:00:00]} 3. Nc3 {[%emt 0:00:05]} Bb4 {[%emt 0:00:00]} 4. e3 {[%emt 0:00:28]} O-O {[%emt 0:00:25]} 5. Nge2 {[%emt 0:00:07]} d5 {[%emt 0:03:29]} 6. a3 {[%emt 0:01:26]} Bd6 {[%emt 0:00:22]} 7. c5 {[%emt 0:03:20]} Be7 {[%emt 0:00:04]} 8. b4 {[%emt 0:01:26]} b6 {[%emt 0:00:07]} 9. Nf4 {[%emt 0:02:56]} c6 {[%emt 0:00:23]} 10. Nd3 {[%emt 0:03:12]} a5 {[%emt 0:03:47]} 11. Bb2 {[%emt 0:07:51]} Ba6 {[%emt 0:00:45]} 12. f4 {[%emt 0:11:06]} Bc4 {[%emt 0:03:38]} 13. Ne5 {[%emt 0:08:56]} Bxf1 {[%emt 0:00:47]} 14. Rxf1 {[%emt 0:03:08]} Nfd7 {[%emt 0:00:11]} 15. Nd3 {[%emt 0:06:24]} Na6 {[%emt 0:00:49]} 16. Kf2 {[%emt 0:03:24]} Qc8 {[%emt 0:02:55]} 17. Kg1 {[%emt 0:01:49]} bxc5 {[%emt 0:00:34]} 18. bxc5 {[%emt 0:01:49]} Nc7 {[%emt 0:00:06]} 19. Qe2 {[%emt 0:10:23]} Qa6 {[%emt 0:05:27]} 20. Rfb1 {[%emt 0:02:15]} f6 {[%emt 0:13:06]} 21. Nf2 {[%emt 0:04:33]} Qc8 {[%emt 0:05:11]} 22. e4 {[%emt 0:03:17]} Re8 {[%emt 0:01:12]} 23. e5 {[%emt 0:01:13]} Rf8 {[%emt 0:04:00]} 24. Bc1 {[%emt 0:01:38]} Rb8 {[%emt 0:01:41]} 25. Bd2 {[%emt 0:01:31]} Kh8 {[%emt 0:06:12]} 26. a4 {[%emt 0:04:34]} g5 {[%emt 0:01:48]} 27. Nd3 {[%emt 0:02:52]} fxe5 {[%emt 0:05:48]} 28. fxe5 {[%emt 0:00:38]} Qa6 {[%emt 0:07:17]} 1/2-1/2

[Event "XIX Najdorf Memorial 2019"]
[Site "Warsaw"]
[Date "2019.07.07"]
[Round "2.6"]
[White "Abdumalik, Zhansaya"]
[Black "Bus, Konrad"]
[Result "1-0"]
[ECO "B12"]
[WhiteElo "2458"]
[BlackElo "2264"]
[Annotator "ChessBase"]
[PlyCount "73"]
[EventDate "2019.07.06"]
[EventType "swiss"]
[EventCountry "POL"]
[SourceTitle "playchess.com"]
[Source "ChessBase"]
[SourceQuality "1"]
[TimeControl "40/5400+30:1800+30"]

1. e4 {[%emt 0:00:00]} c6 {[%emt 0:00:00]} 2. d4 {[%emt 0:00:00]} d5 {[%emt 0:00:00]} 3. e5 {[%emt 0:00:29]} Bf5 {[%emt 0:00:55]} 4. h4 {[%emt 0:00:26]} Qc7 {[%emt 0:02:13]} 5. g4 {[%emt 0:04:00]} Bd7 {[%emt 0:00:25]} 6. Bg2 {[%emt 0:01:28]} c5 {[%emt 0:04:41]} 7. Nc3 {[%emt 0:09:28]} e6 {[%emt 0:02:07]} 8. Nf3 {[%emt 0:05:03]} Nc6 {[%emt 0:06:01]} 9. Be3 {[%emt 0:03:54]} cxd4 {[%emt 0:03:35]} 10. Bxd4 {[%emt 0:01:00]} Nxd4 {[%emt 0:03:45]} 11. Qxd4 {[%emt 0:00:26]} Bc5 {[%emt 0:00:59]} 12. Qf4 {[%emt 0:04:10]} Ne7 {[%emt 0:09:39]} 13. h5 {[%emt 0:03:28]} h6 {[%emt 0:07:22]} 14. a3 {[%emt 0:05:34]} f6 {[%emt 0:08:27]} 15. Ne2 {[%emt 0:04:47]} O-O {[%emt 0:05:40]} 16. exf6 {[%emt 0:02:23]} Qxf4 {[%emt 0:03:01]} 17. Nxf4 {[%emt 0:00:05]} Rxf6 {[%emt 0:06:53]} 18. Nd3 {[%emt 0:01:07]} Bb6 {[%emt 0:00:31]} 19. O-O-O {[%emt 0:09:19]} Raf8 {[%emt 0:04:49]} 20. Nfe5 {[%emt 0:01:16]} Bb5 {[%emt 0:07:09]} 21. f3 {[%emt 0:01:01]} Rc8 {[%emt 0:01:05]} 22. Kb1 {[%emt 0:02:21]} Rc7 {[%emt 0:01:01]} 23. f4 {[%emt 0:05:45]} Bd4 {[%emt 0:06:47]} 24. Nf3 {[%emt 0:06:28]} Be3 {[%emt 0:01:41]} 25. g5 {[%emt 0:00:42]} Rf8 {[%emt 0:00:58]} 26. Bh3 {[%emt 0:04:31]} Nf5 {[%emt 0:02:14]} 27. gxh6 {[%emt 0:01:21]} gxh6 {[%emt 0:01:11]} 28. Nfe5 {[%emt 0:00:58]} Be8 {[%emt 0:01:28]} 29. Rde1 {[%emt 0:06:37]} Bb6 {[%emt 0:01:49]} 30. Ng6 {[%emt 0:02:13]} Bxg6 {[%emt 0:04:45]} 31. hxg6 {[%emt 0:00:05]} Ne3 {[%emt 0:02:17]} 32. Bxe6+ {[%emt 0:01:17]} Kg7 {[%emt 0:00:02]} 33. Rh2 {[%emt 0:02:23]} Rc6 {[%emt 0:01:53]} 34. Bf7 {[%emt 0:00:58]} d4 {[%emt 0:01:00]} 35. Ne5 {[%emt 0:04:15]} Rc7 {[%emt 0:00:33]} 36. Reh1 {[%emt 0:00:22]} Rh8 {[%emt 0:00:10]} 37. Bb3 {[%emt 0:01:13]} 1-0

[Event "XIX Najdorf Memorial 2019"]
[Site "Warsaw"]
[Date "2019.07.07"]
[Round "2.6"]
[White "Kowalski, Igor"]
[Black "Yuffa, Daniil"]
[Result "0-1"]
[ECO "E71"]
[WhiteElo "2320"]
[BlackElo "2582"]
[Annotator "ChessBase"]
[PlyCount "114"]
[EventDate "2019.07.06"]
[EventType "swiss"]
[EventCountry "POL"]
[SourceTitle "playchess.com"]
[Source "ChessBase"]
[SourceQuality "1"]
[TimeControl "40/5400+30:1800+30"]

1. d4 {[%emt 0:00:00]} Nf6 {[%emt 0:00:02]} 2. c4 {[%emt 0:00:00]} g6 {[%emt 0:00:36]} 3. Nc3 {[%emt 0:00:00]} Bg7 {[%emt 0:00:08]} 4. e4 {[%emt 0:00:00]} d6 {[%emt 0:00:10]} 5. h3 {[%emt 0:00:00]} O-O {[%emt 0:00:08]} 6. Be3 {[%emt 0:00:00]} c5 {[%emt 0:00:05]} 7. d5 {[%emt 0:00:00]} e6 {[%emt 0:02:27]} 8. Bd3 {[%emt 0:00:47]} Na6 {[%emt 0:06:14]} 9. Nf3 {[%emt 0:03:29]} Nc7 {[%emt 0:00:40]} 10. a4 {[%emt 0:11:12]} Na6 {[%emt 0:04:12]} 11. O-O {[%emt 0:01:17]} Nb4 {[%emt 0:09:04]} 12. Be2 {[%emt 0:00:06]} Re8 {[%emt 0:06:43]} 13. e5 {[%emt 0:16:15]} dxe5 {[%emt 0:00:54]} 14. Bxc5 {[%emt 0:00:04]} Na6 {[%emt 0:01:50]} 15. Ba3 {[%emt 0:00:05]} e4 {[%emt 0:00:30]} 16. Ne1 {[%emt 0:00:15]} exd5 {[%emt 0:03:16]} 17. cxd5 {[%emt 0:01:29]} e3 {[%emt 0:00:34]} 18. fxe3 {[%emt 0:09:11]} Rxe3 {[%emt 0:00:38]} 19. Bxa6 {[%emt 0:00:48]} bxa6 {[%emt 0:04:59]} 20. Bc5 {[%emt 0:01:12]} Rg3 {[%emt 0:02:54]} 21. Bf2 {[%emt 0:14:09]} Rg5 {[%emt 0:00:50]} 22. Qd2 {[%emt 0:00:17]} Rf5 {[%emt 0:05:12]} 23. Nc2 {[%emt 0:08:34]} Bb7 {[%emt 0:01:08]} 24. Bd4 {[%emt 0:02:40]} Rxf1+ {[%emt 0:03:06]} 25. Rxf1 {[%emt 0:00:05]} Nxd5 {[%emt 0:02:04]} 26. Bxg7 {[%emt 0:03:45]} Kxg7 {[%emt 0:00:06]} 27. Nxd5 {[%emt 0:01:20]} Qxd5 {[%emt 0:03:33]} 28. Qc3+ {[%emt 0:02:23]} Kg8 {[%emt 0:01:00]} 29. Ne3 {[%emt 0:00:54]} Qe4 {[%emt 0:02:53]} 30. Rf2 {[%emt 0:00:44]} Rc8 {[%emt 0:11:23]} 31. Qf6 {[%emt 0:00:41]} Qe6 {[%emt 0:02:25]} 32. Qd4 {[%emt 0:08:46]} Rc1+ {[%emt 0:04:59]} 33. Kh2 {[%emt 0:04:01]} Qb6 {[%emt 0:00:16]} 34. Qf4 {[%emt 0:01:56]} Qc7 {[%emt 0:00:25]} 35. a5 {[%emt 0:07:12]} f5 {[%emt 0:05:00]} 36. Qxc7 {[%emt 0:01:50]} Rxc7 {[%emt 0:00:05]} 37. Rf4 {[%emt 0:00:11]} Be4 {[%emt 0:01:03]} 38. h4 {[%emt 0:00:23]} h6 {[%emt 0:05:44]} 39. Rf2 {[%emt 0:01:54]} Kg7 {[%emt 0:05:47]} 40. Rd2 {[%emt 0:00:00]} Rb7 {[%emt 0:00:00]} 41. Kg3 {[%emt 0:00:56]} Kf7 {[%emt 0:07:19]} 42. Nc4 {[%emt 0:01:22]} Rb4 {[%emt 0:02:34]} 43. Ne5+ {[%emt 0:02:48]} Kf6 {[%emt 0:02:12]} 44. Nd7+ {[%emt 0:00:03]} Ke7 {[%emt 0:01:33]} 45. Nc5 {[%emt 0:00:03]} Bc6 {[%emt 0:10:02]} 46. Nxa6 {[%emt 0:00:32]} Rg4+ {[%emt 0:02:01]} 47. Kh3 {[%emt 0:02:20]} Rc4 {[%emt 0:00:06]} 48. b4 {[%emt 0:02:03]} Bb5 {[%emt 0:00:55]} 49. Nc5 {[%emt 0:01:00]} Rxb4 {[%emt 0:00:16]} 50. g3 {[%emt 0:02:14]} Bc6 {[%emt 0:03:47]} 51. Nd3 {[%emt 0:00:15]} Rb1 {[%emt 0:01:26]} 52. Nf2 {[%emt 0:00:15]} Ra1 {[%emt 0:01:00]} 53. Re2+ {[%emt 0:00:17]} Kd6 {[%emt 0:00:36]} 54. Rd2+ {[%emt 0:00:36]} Bd5 {[%emt 0:00:42]} 55. g4 {[%emt 0:00:23]} Rxa5 {[%emt 0:03:58]} 56. gxf5 {[%emt 0:00:05]} gxf5 {[%emt 0:00:18]} 57. Kg3 {[%emt 0:00:12]} Ra3+ {[%emt 0:00:17]} 0-1